[Event "*** Titled Tuesday Blitz"]
[Site "Chess.com"]
[Date "2018.06.05"]
[Round "2"]
[White "Grandelicious"]
[Black "Hrant_ChessMood"]
[Result "0-1"]
[WhiteElo "2587"]
[BlackElo "2937"]
[TimeControl "180+2"]
[EndTime "13:24:20 PDT"]
[Termination "Hrant_ChessMood won by resignation"]

1. e4 {[%clk 0:03:01.9]} 1... c6 {[%clk 0:02:52.1]} 2. d4 {[%clk 0:02:58]} 2...
d5 {[%clk 0:02:50.2]} 3. e5 {[%clk 0:02:56.5]} 3... Bf5 {[%clk 0:02:50.2]} 4. h4
{[%clk 0:02:56.8]} 4... Qc7 {[%clk 0:02:45.3]} 5. h5 {[%clk 0:02:55.5]} 5... c5
{[%clk 0:02:34.9]} 6. dxc5 {[%clk 0:02:48.2]} 6... Nc6 {[%clk 0:02:28.2]} 7. Nc3
{[%clk 0:02:44.3]} 7... d4 {[%clk 0:02:20.7]} 8. Nb5 {[%clk 0:02:33.5]} 8...
Qxe5+ {[%clk 0:02:21.4]} 9. Ne2 {[%clk 0:02:34.4]} 9... O-O-O {[%clk 0:01:49.6]}
10. Bf4 {[%clk 0:01:42.6]} 10... Qxc5 {[%clk 0:01:50.3]} 11. Ng3 {[%clk
0:01:43.6]} 11... Bxc2 {[%clk 0:01:41.1]} 12. Rc1 {[%clk 0:01:26]} 12... d3
{[%clk 0:01:20]} 13. Bxd3 {[%clk 0:01:04.9]} 13... Bxd1 {[%clk 0:01:16.8]} 14.
Rxc5 {[%clk 0:00:57.5]} 14... Rxd3 {[%clk 0:01:17.6]} 15. Nxa7+ {[%clk
0:00:21.9]} 15... Kd7 {[%clk 0:01:18.2]} 16. Nxc6 {[%clk 0:00:23.5]} 16... bxc6
{[%clk 0:01:19.9]} 17. Bd2 {[%clk 0:00:19]} 17... Bg4 {[%clk 0:01:07.8]} 18. Ra5
{[%clk 0:00:19]} 18... Nf6 {[%clk 0:00:53.6]} 19. Rh4 {[%clk 0:00:19]} 19... e6
{[%clk 0:00:47.8]} 20. Ra7+ {[%clk 0:00:19.7]} 20... Ke8 {[%clk 0:00:49]} 21. f3
{[%clk 0:00:20.5]} 21... Bd6 {[%clk 0:00:38.5]} 22. Ne2 {[%clk 0:00:16.8]} 22...
Bb8 {[%clk 0:00:19.6]} 23. Ra8 {[%clk 0:00:17.4]} 23... Rd8 {[%clk 0:00:20.2]}
24. fxg4 {[%clk 0:00:15.8]} 24... Bg3+ {[%clk 0:00:21]} 25. Nxg3 {[%clk
0:00:17.2]} 25... Rxa8 {[%clk 0:00:22.8]} 26. Bc3 {[%clk 0:00:18.8]} 26... h6
{[%clk 0:00:21]} 27. g5 {[%clk 0:00:18.3]} 27... hxg5 {[%clk 0:00:21.4]} 28. Rc4
{[%clk 0:00:20.2]} 28... Nxh5 {[%clk 0:00:20.4]} 29. Ne4 {[%clk 0:00:20.6]}
29... f6 {[%clk 0:00:20.1]} 30. Rxc6 {[%clk 0:00:21.4]} 30... Kf7 {[%clk
0:00:21.2]} 31. Nc5 {[%clk 0:00:22.1]} 31... Nf4 {[%clk 0:00:21.6]} 32. g3
{[%clk 0:00:21.8]} 32... Nd5 {[%clk 0:00:19.7]} 33. Bd2 {[%clk 0:00:19.1]} 33...
Rxa2 {[%clk 0:00:18.3]} 34. b4 {[%clk 0:00:20.4]} 34... Rh1+ {[%clk 0:00:17.4]}
0-1

[Event "*** Titled Tuesday Blitz"]
[Site "Chess.com"]
[Date "2018.06.05"]
[Round "2"]
[White "26andrej26"]
[Black "Gareth-Bale11"]
[Result "0-1"]
[WhiteElo "2367"]
[BlackElo "2454"]
[TimeControl "180+2"]
[EndTime "13:24:25 PDT"]
[Termination "Gareth-Bale11 won by resignation"]

1. e4 {[%clk 0:03:01.9]} 1... e5 {[%clk 0:02:59.8]} 2. f4 {[%clk 0:03:01.4]}
2... d5 {[%clk 0:02:59.7]} 3. exd5 {[%clk 0:03:01.2]} 3... exf4 {[%clk
0:03:00.5]} 4. Nf3 {[%clk 0:03:00.6]} 4... Nf6 {[%clk 0:02:56.5]} 5. Bc4 {[%clk
0:02:49.9]} 5... Nxd5 {[%clk 0:02:51]} 6. O-O {[%clk 0:02:50.8]} 6... Be7 {[%clk
0:02:49.5]} 7. d4 {[%clk 0:02:49.5]} 7... O-O {[%clk 0:02:47.4]} 8. Bb3 {[%clk
0:02:38.9]} 8... Bg4 {[%clk 0:02:37.7]} 9. c4 {[%clk 0:02:23]} 9... Ne3 {[%clk
0:02:28.3]} 10. Bxe3 {[%clk 0:02:22.6]} 10... fxe3 {[%clk 0:02:30.2]} 11. Qd3
{[%clk 0:02:23.2]} 11... Bf6 {[%clk 0:02:26.7]} 12. Nc3 {[%clk 0:01:08.2]} 12...
Bxf3 {[%clk 0:02:16.9]} 13. Rxf3 {[%clk 0:01:08.7]} 13... Bxd4 {[%clk
0:02:16.7]} 14. Bc2 {[%clk 0:01:07.7]} 14... g6 {[%clk 0:02:17.1]} 15. Nd5
{[%clk 0:00:59.9]} 15... Nc6 {[%clk 0:02:13]} 16. Kh1 {[%clk 0:00:50.5]} 16...
Bxb2 {[%clk 0:01:56.8]} 17. Rb1 {[%clk 0:00:30.9]} 17... Bg7 {[%clk 0:01:49]}
18. Qxe3 {[%clk 0:00:30.5]} 18... Nd4 {[%clk 0:01:47.1]} 19. Rf2 {[%clk
0:00:20.4]} 19... Re8 {[%clk 0:01:43.7]} 20. Qf4 {[%clk 0:00:19.3]} 20... f5
{[%clk 0:01:43.6]} 21. Bd3 {[%clk 0:00:16.4]} 21... c6 {[%clk 0:01:43.4]} 22.
Nb4 {[%clk 0:00:03.7]} 22... a5 {[%clk 0:01:42.7]} 23. Nc2 {[%clk 0:00:05.1]}
23... Ne6 {[%clk 0:01:41.6]} 24. Qg3 {[%clk 0:00:05.6]} 24... Nc5 {[%clk
0:01:37.1]} 25. Bf1 {[%clk 0:00:06.4]} 25... Ne4 {[%clk 0:01:36.6]} 26. Qf3
{[%clk 0:00:07.6]} 26... Nxf2+ {[%clk 0:01:36.2]} 27. Qxf2 {[%clk 0:00:09.5]}
27... Qe7 {[%clk 0:01:37.6]} 28. c5 {[%clk 0:00:08.4]} 28... Rad8 {[%clk
0:01:38.1]} 29. h3 {[%clk 0:00:08.3]} 29... Kh8 {[%clk 0:01:40]} 30. Rb6 {[%clk
0:00:08.4]} 30... Rd1 {[%clk 0:01:37.9]} 31. Kh2 {[%clk 0:00:05.2]} 31... Qe5+
{[%clk 0:01:36.3]} 32. g3 {[%clk 0:00:06.5]} 32... Rxf1 {[%clk 0:01:36.5]} 33.
Qxf1 {[%clk 0:00:06.5]} 33... Qe2+ {[%clk 0:01:37.7]} 34. Qg2 {[%clk 0:00:04]}
34... Qxg2+ {[%clk 0:01:38.3]} 35. Kxg2 {[%clk 0:00:05.4]} 35... Re2+ {[%clk
0:01:39.9]} 36. Kf3 {[%clk 0:00:06.8]} 36... Rxc2 {[%clk 0:01:41.8]} 37. Rxb7
{[%clk 0:00:08.2]} 37... Be5 {[%clk 0:01:41.6]} 38. Rb6 {[%clk 0:00:06.8]} 38...
Rc3+ {[%clk 0:01:42.3]} 39. Ke2 {[%clk 0:00:07.2]} 39... Rxc5 {[%clk 0:01:44.2]}
40. Ra6 {[%clk 0:00:07.4]} 40... Bxg3 {[%clk 0:01:44.7]} 41. Kd3 {[%clk
0:00:06.9]} 41... h5 {[%clk 0:01:45.4]} 42. Kd4 {[%clk 0:00:07.8]} 42... Bf2+
{[%clk 0:01:44.1]} 43. Kd3 {[%clk 0:00:08.1]} 43... Kg7 {[%clk 0:01:46]} 44.
Ra7+ {[%clk 0:00:08.4]} 44... Kh6 {[%clk 0:01:46]} 45. Ra6 {[%clk 0:00:09.8]}
45... h4 {[%clk 0:01:46.6]} 46. Ke2 {[%clk 0:00:10.9]} 46... Bg3 {[%clk
0:01:47.2]} 47. Kd3 {[%clk 0:00:12.4]} 47... Kg5 {[%clk 0:01:48]} 48. Kd4 {[%clk
0:00:13.4]} 48... Bf2+ {[%clk 0:01:48.2]} 49. Kd3 {[%clk 0:00:15.3]} 49... Kf4
{[%clk 0:01:49.9]} 50. Ra8 {[%clk 0:00:15.8]} 50... g5 {[%clk 0:01:50.1]} 51.
Ke2 {[%clk 0:00:12.1]} 51... Bg3 {[%clk 0:01:50.4]} 52. Rd8 {[%clk 0:00:12.9]}
52... g4 {[%clk 0:01:52.1]} 53. Rd4+ {[%clk 0:00:13.5]} 53... Ke5 {[%clk
0:01:52.2]} 54. Ra4 {[%clk 0:00:14.1]} 54... gxh3 {[%clk 0:01:53.6]} 55. Kf3
{[%clk 0:00:15.5]} 55... h2 {[%clk 0:01:54.4]} 56. Kg2 {[%clk 0:00:16]} 56...
Rc2+ {[%clk 0:01:56.3]} 0-1

[Event "*** Titled Tuesday Blitz"]
[Site "Chess.com"]
[Date "2018.06.05"]
[Round "2"]
[White "djamir"]
[Black "djano"]
[Result "1-0"]
[WhiteElo "2593"]
[BlackElo "2420"]
[TimeControl "180+2"]
[EndTime "13:24:28 PDT"]
[Termination "djamir won by resignation"]

1. d4 {[%clk 0:03:01.9]} 1... Nf6 {[%clk 0:03:00]} 2. Bf4 {[%clk 0:03:01.8]}
2... g6 {[%clk 0:02:58.2]} 3. h3 {[%clk 0:03:00.3]} 3... Bg7 {[%clk 0:02:58.6]}
4. e3 {[%clk 0:03:01]} 4... O-O {[%clk 0:02:56.2]} 5. Nf3 {[%clk 0:03:01.9]}
5... c5 {[%clk 0:02:54.4]} 6. c3 {[%clk 0:03:02.1]} 6... b6 {[%clk 0:02:53.4]}
7. a4 {[%clk 0:02:59.1]} 7... d6 {[%clk 0:02:48.7]} 8. Nbd2 {[%clk 0:02:59.8]}
8... Bb7 {[%clk 0:02:48.3]} 9. Be2 {[%clk 0:02:57.2]} 9... Nbd7 {[%clk
0:02:44.8]} 10. O-O {[%clk 0:02:58.1]} 10... Re8 {[%clk 0:02:35.3]} 11. Bh2
{[%clk 0:02:53.8]} 11... Ne4 {[%clk 0:02:31.1]} 12. Nxe4 {[%clk 0:02:53.8]}
12... Bxe4 {[%clk 0:02:33]} 13. Nd2 {[%clk 0:02:55.1]} 13... Bc6 {[%clk
0:02:30.8]} 14. Bf3 {[%clk 0:02:56.5]} 14... Qc7 {[%clk 0:02:31]} 15. a5 {[%clk
0:02:56.1]} 15... Nf6 {[%clk 0:02:22.1]} 16. b4 {[%clk 0:02:39.8]} 16... cxd4
{[%clk 0:02:17.9]} 17. cxd4 {[%clk 0:02:38.5]} 17... Qd7 {[%clk 0:02:06.7]} 18.
Nc4 {[%clk 0:02:24.9]} 18... Rab8 {[%clk 0:02:00]} 19. axb6 {[%clk 0:02:20.6]}
19... axb6 {[%clk 0:02:01.9]} 20. Qe2 {[%clk 0:01:19]} 20... Bb5 {[%clk
0:01:56.6]} 21. Rfc1 {[%clk 0:01:07.6]} 21... Rec8 {[%clk 0:01:32.4]} 22. Qa2
{[%clk 0:01:07.1]} 22... Qe6 {[%clk 0:01:18.8]} 23. Be2 {[%clk 0:00:45.8]} 23...
Nd5 {[%clk 0:01:13.1]} 24. Qb2 {[%clk 0:00:23.4]} 24... Qd7 {[%clk 0:00:55.3]}
25. Bg4 {[%clk 0:00:20.8]} 25... f5 {[%clk 0:00:54.6]} 26. Bf3 {[%clk
0:00:18.6]} 26... Qe6 {[%clk 0:00:49.5]} 27. Na3 {[%clk 0:00:18.9]} 27... Be8
{[%clk 0:00:46.7]} 28. b5 {[%clk 0:00:17.1]} 28... Bf7 {[%clk 0:00:43.1]} 29.
Rxc8+ {[%clk 0:00:16.5]} 29... Rxc8 {[%clk 0:00:45]} 30. Rc1 {[%clk 0:00:17.5]}
30... h5 {[%clk 0:00:42.4]} 31. Rc6 {[%clk 0:00:14.8]} 31... Qd7 {[%clk
0:00:37]} 32. Qc1 {[%clk 0:00:13.3]} 32... Ra8 {[%clk 0:00:36.9]} 33. Nc4 {[%clk
0:00:14.5]} 33... Nb4 {[%clk 0:00:37.1]} 34. Nxb6 {[%clk 0:00:15.2]} 34... Qe8
{[%clk 0:00:35.8]} 35. Nxa8 {[%clk 0:00:15.5]} 35... Qxa8 {[%clk 0:00:36.2]} 36.
Rc8+ {[%clk 0:00:16.4]} 1-0

[Event "*** Titled Tuesday Blitz"]
[Site "Chess.com"]
[Date "2018.06.05"]
[Round "2"]
[White "Swarnapuri"]
[Black "tango_argentino"]
[Result "0-1"]
[WhiteElo "2436"]
[BlackElo "2455"]
[TimeControl "180+2"]
[EndTime "13:24:30 PDT"]
[Termination "tango_argentino won by resignation"]

1. d4 {[%clk 0:03:01.6]} 1... Nf6 {[%clk 0:03:00.2]} 2. Bf4 {[%clk 0:03:02.8]}
2... g6 {[%clk 0:02:59.5]} 3. e3 {[%clk 0:03:04.2]} 3... Bg7 {[%clk 0:03:00.2]}
4. Nf3 {[%clk 0:03:05.7]} 4... O-O {[%clk 0:03:00.6]} 5. Be2 {[%clk 0:03:07.2]}
5... d6 {[%clk 0:03:01.3]} 6. O-O {[%clk 0:03:07.7]} 6... b6 {[%clk 0:03:01.1]}
7. h3 {[%clk 0:03:09]} 7... Bb7 {[%clk 0:03:01.8]} 8. a4 {[%clk 0:03:10.5]} 8...
a6 {[%clk 0:03:02.3]} 9. Nbd2 {[%clk 0:03:10.2]} 9... Nfd7 {[%clk 0:03:00.3]}
10. Bh2 {[%clk 0:03:11.3]} 10... e5 {[%clk 0:02:59]} 11. c3 {[%clk 0:03:10.5]}
11... e4 {[%clk 0:02:56.5]} 12. Ne1 {[%clk 0:03:10.6]} 12... Qe7 {[%clk
0:02:55.2]} 13. b4 {[%clk 0:03:10.4]} 13... h5 {[%clk 0:02:51.7]} 14. Qb3 {[%clk
0:03:03.8]} 14... Nc6 {[%clk 0:02:46.9]} 15. Nc2 {[%clk 0:02:54.9]} 15... Nd8
{[%clk 0:02:40.7]} 16. b5 {[%clk 0:02:51.6]} 16... a5 {[%clk 0:02:31.2]} 17. c4
{[%clk 0:02:51.5]} 17... Ne6 {[%clk 0:02:29.5]} 18. Qa3 {[%clk 0:02:46.3]} 18...
h4 {[%clk 0:02:27.9]} 19. Rac1 {[%clk 0:02:41]} 19... Ng5 {[%clk 0:02:27.5]} 20.
c5 {[%clk 0:02:26]} 20... bxc5 {[%clk 0:02:21.6]} 21. Nb3 {[%clk 0:02:09.3]}
21... cxd4 {[%clk 0:02:18.1]} 22. Ncxd4 {[%clk 0:02:10.7]} 22... Ne5 {[%clk
0:02:09.5]} 23. Bxe5 {[%clk 0:01:56.7]} 23... Bxe5 {[%clk 0:02:05.1]} 24. Nc6
{[%clk 0:01:57.7]} 24... Bxc6 {[%clk 0:02:03.9]} 25. Rxc6 {[%clk 0:01:59.6]}
25... Qd7 {[%clk 0:01:56.1]} 26. Bg4 {[%clk 0:01:42.9]} 26... f5 {[%clk
0:01:56.8]} 27. Be2 {[%clk 0:01:44.3]} 27... f4 {[%clk 0:01:51]} 28. exf4 {[%clk
0:01:39]} 28... Rxf4 {[%clk 0:01:42.6]} 29. Nd2 {[%clk 0:01:38.9]} 29... Raf8
{[%clk 0:01:35.5]} 30. Nc4 {[%clk 0:01:39.3]} 30... Bd4 {[%clk 0:01:31.4]} 31.
Ne3 {[%clk 0:01:31.7]} 31... Nxh3+ {[%clk 0:01:29.4]} 32. gxh3 {[%clk
0:01:28.4]} 32... Qxh3 {[%clk 0:01:31.3]} 33. Qb3+ {[%clk 0:01:22.5]} 33... Kh8
{[%clk 0:01:29.6]} 34. Qc4 {[%clk 0:01:14]} 34... Be5 {[%clk 0:01:21.2]} 35. Qd5
{[%clk 0:00:33.3]} 35... R4f5 {[%clk 0:00:55.1]} 36. Ng4 {[%clk 0:00:28.8]}
36... Bh2+ {[%clk 0:00:55.6]} 37. Nxh2 {[%clk 0:00:26.2]} 37... Rxd5 {[%clk
0:00:54.6]} 38. Rxc7 {[%clk 0:00:22.8]} 38... Rg5+ {[%clk 0:00:54.7]} 0-1

[Event "*** Titled Tuesday Blitz"]
[Site "Chess.com"]
[Date "2018.06.05"]
[Round "2"]
[White "Jungle_Jaguar"]
[Black "asms9699"]
[Result "0-1"]
[WhiteElo "2458"]
[BlackElo "2454"]
[TimeControl "180+2"]
[EndTime "13:24:35 PDT"]
[Termination "asms9699 won by resignation"]

1. e4 {[%clk 0:03:01.9]} 1... e6 {[%clk 0:03:00.8]} 2. d4 {[%clk 0:03:00.2]}
2... d5 {[%clk 0:03:01.9]} 3. Nc3 {[%clk 0:03:00.5]} 3... Nf6 {[%clk 0:03:02.6]}
4. Bg5 {[%clk 0:03:01.3]} 4... Be7 {[%clk 0:03:03.6]} 5. e5 {[%clk 0:03:02.1]}
5... Nfd7 {[%clk 0:03:04.9]} 6. h4 {[%clk 0:03:03.7]} 6... Nc6 {[%clk
0:03:05.2]} 7. Nf3 {[%clk 0:03:03.9]} 7... h6 {[%clk 0:03:05.5]} 8. Bxe7 {[%clk
0:03:03.6]} 8... Qxe7 {[%clk 0:03:07.4]} 9. Bd3 {[%clk 0:02:59.6]} 9... Nb6
{[%clk 0:03:08.2]} 10. Qe2 {[%clk 0:02:56.7]} 10... Bd7 {[%clk 0:03:08.9]} 11.
O-O-O {[%clk 0:02:56]} 11... O-O-O {[%clk 0:03:09.9]} 12. Kb1 {[%clk 0:02:56.2]}
12... Kb8 {[%clk 0:03:10.7]} 13. a3 {[%clk 0:02:56.6]} 13... Na5 {[%clk
0:03:10]} 14. Nd2 {[%clk 0:02:55.5]} 14... c5 {[%clk 0:03:08.1]} 15. Qe3 {[%clk
0:02:43.8]} 15... Rc8 {[%clk 0:02:43.5]} 16. Nb3 {[%clk 0:02:34.5]} 16... Nac4
{[%clk 0:02:20.4]} 17. Bxc4 {[%clk 0:02:35]} 17... Nxc4 {[%clk 0:02:22.3]} 18.
Qd3 {[%clk 0:02:18.7]} 18... Nxa3+ {[%clk 0:02:01.5]} 19. bxa3 {[%clk
0:02:20.6]} 19... c4 {[%clk 0:02:02.2]} 20. Qd2 {[%clk 0:02:07.3]} 20... cxb3
{[%clk 0:01:59.1]} 21. cxb3 {[%clk 0:02:08.4]} 21... Qxa3 {[%clk 0:01:57.2]} 22.
Qb2 {[%clk 0:02:09.9]} 22... Qb4 {[%clk 0:01:54]} 23. Na2 {[%clk 0:02:09.3]}
23... Qe7 {[%clk 0:01:47.8]} 24. g3 {[%clk 0:02:10]} 24... f6 {[%clk 0:01:46.7]}
25. Rhe1 {[%clk 0:02:08.1]} 25... Be8 {[%clk 0:01:45.2]} 26. Rd2 {[%clk
0:02:02.8]} 26... Bg6+ {[%clk 0:01:42]} 27. Ka1 {[%clk 0:02:03.9]} 27... Rc6
{[%clk 0:01:35.7]} 28. b4 {[%clk 0:01:59.9]} 28... Rhc8 {[%clk 0:01:34.5]} 29.
b5 {[%clk 0:01:53.5]} 29... Rc4 {[%clk 0:01:11.7]} 30. Rde2 {[%clk 0:01:46.2]}
30... fxe5 {[%clk 0:01:01.1]} 31. Rxe5 {[%clk 0:01:46.7]} 31... Rc2 {[%clk
0:01:00.1]} 32. Qb3 {[%clk 0:01:46.7]} 32... Qf6 {[%clk 0:00:43.4]} 33. f4
{[%clk 0:01:37.1]} 33... Be4 {[%clk 0:00:31.1]} 34. b6 {[%clk 0:01:29.4]} 34...
axb6 {[%clk 0:00:22]} 35. Qxb6 {[%clk 0:01:27]} 35... R2c6 {[%clk 0:00:21.2]}
36. Qb4 {[%clk 0:01:24.2]} 36... Qd8 {[%clk 0:00:21.5]} 37. g4 {[%clk
0:01:04.5]} 37... Rb6 {[%clk 0:00:18.4]} 38. Qd2 {[%clk 0:00:56.3]} 38... Rc2
{[%clk 0:00:17.9]} 39. Qe3 {[%clk 0:00:30.3]} 39... Ra6 {[%clk 0:00:16.8]} 40.
Qb3 {[%clk 0:00:31.9]} 40... Raxa2+ {[%clk 0:00:17.2]} 41. Qxa2 {[%clk
0:00:32.9]} 41... Rxa2+ {[%clk 0:00:19.1]} 42. Kxa2 {[%clk 0:00:34.2]} 42...
Qa5+ {[%clk 0:00:20.6]} 43. Kb3 {[%clk 0:00:35.7]} 43... Qxe1 {[%clk 0:00:21.2]}
0-1

[Event "*** Titled Tuesday Blitz"]
[Site "Chess.com"]
[Date "2018.06.05"]
[Round "2"]
[White "Triumphmate"]
[Black "AsaHoffmann"]
[Result "1-0"]
[WhiteElo "2169"]
[BlackElo "2148"]
[TimeControl "180+2"]
[EndTime "13:24:45 PDT"]
[Termination "Triumphmate won by resignation"]

1. e4 {[%clk 0:03:01.9]} 1... d6 {[%clk 0:02:52.3]} 2. d4 {[%clk 0:03:02]} 2...
Nf6 {[%clk 0:02:51.7]} 3. Nc3 {[%clk 0:02:51.8]} 3... c6 {[%clk 0:02:52]} 4. Be3
{[%clk 0:02:47.7]} 4... Ng4 {[%clk 0:02:51.8]} 5. Bf4 {[%clk 0:02:45.9]} 5...
Qb6 {[%clk 0:02:50.9]} 6. Be2 {[%clk 0:02:35.1]} 6... h5 {[%clk 0:02:32]} 7. h3
{[%clk 0:02:29.3]} 7... Nf6 {[%clk 0:02:28.2]} 8. Qd2 {[%clk 0:02:27.3]} 8...
Nbd7 {[%clk 0:02:21.8]} 9. O-O-O {[%clk 0:02:21.1]} 9... e5 {[%clk 0:02:20.7]}
10. Be3 {[%clk 0:02:15.9]} 10... Qa5 {[%clk 0:02:19.6]} 11. Kb1 {[%clk
0:02:13.1]} 11... Be7 {[%clk 0:02:18.2]} 12. f4 {[%clk 0:02:04.9]} 12... Qc7
{[%clk 0:01:58.2]} 13. Nf3 {[%clk 0:02:02.9]} 13... exd4 {[%clk 0:01:46.8]} 14.
Nxd4 {[%clk 0:02:02.5]} 14... Nb6 {[%clk 0:01:46.2]} 15. g4 {[%clk 0:01:59.7]}
15... h4 {[%clk 0:01:43.4]} 16. g5 {[%clk 0:01:55.1]} 16... Ng8 {[%clk
0:01:43.4]} 17. f5 {[%clk 0:01:49.7]} 17... Bd7 {[%clk 0:01:40.6]} 18. Nb3
{[%clk 0:01:20.2]} 18... O-O-O {[%clk 0:01:38]} 19. Bf4 {[%clk 0:01:09.4]} 19...
Be8 {[%clk 0:01:36]} 20. Bg4 {[%clk 0:00:51.5]} 20... f6 {[%clk 0:01:34.4]} 21.
g6 {[%clk 0:00:45.5]} 21... Nh6 {[%clk 0:01:34.7]} 22. Bf3 {[%clk 0:00:40]}
22... Nc4 {[%clk 0:01:26.8]} 23. Qd4 {[%clk 0:00:38.7]} 23... Ne5 {[%clk
0:01:25.4]} 24. Be2 {[%clk 0:00:35.9]} 24... Qb6 {[%clk 0:01:23.2]} 25. Qd2
{[%clk 0:00:36]} 25... Bd7 {[%clk 0:01:19.6]} 26. Be3 {[%clk 0:00:35.8]} 26...
Qc7 {[%clk 0:01:18.6]} 27. Bxa7 {[%clk 0:00:36.8]} 27... Nxf5 {[%clk 0:01:14.9]}
28. exf5 {[%clk 0:00:36.6]} 28... Bxf5 {[%clk 0:01:15.5]} 29. Na4 {[%clk
0:00:33.3]} 29... Nd7 {[%clk 0:01:12.7]} 30. Na5 {[%clk 0:00:30.1]} 30... d5
{[%clk 0:01:08.6]} 31. a3 {[%clk 0:00:28.1]} 31... Be4 {[%clk 0:01:08.2]} 32.
Rhf1 {[%clk 0:00:28.4]} 32... Bd6 {[%clk 0:01:05.5]} 33. Bg4 {[%clk 0:00:29.1]}
33... f5 {[%clk 0:01:05.3]} 34. Rxf5 {[%clk 0:00:30.2]} 34... Bxf5 {[%clk
0:01:03.6]} 35. Bxf5 {[%clk 0:00:31.6]} 35... Rhf8 {[%clk 0:01:01.8]} 36. Nb6+
{[%clk 0:00:28]} 36... Qxb6 {[%clk 0:01:01.1]} 37. Bxd7+ {[%clk 0:00:29.5]}
37... Rxd7 {[%clk 0:01:00.1]} 38. Bxb6 {[%clk 0:00:31.4]} 38... Bf4 {[%clk
0:01:00.3]} 39. Qd3 {[%clk 0:00:31.4]} 39... Rf6 {[%clk 0:01:00.8]} 40. Re1
{[%clk 0:00:31.9]} 40... Rf8 {[%clk 0:00:58.3]} 41. Qe2 {[%clk 0:00:31.6]} 41...
Bc7 {[%clk 0:00:56.9]} 42. Bxc7 {[%clk 0:00:30.6]} 42... Kxc7 {[%clk 0:00:57.1]}
43. Qg4 {[%clk 0:00:31]} 43... Rfd8 {[%clk 0:00:55.7]} 44. Nb3 {[%clk
0:00:31.9]} 44... b6 {[%clk 0:00:55.6]} 45. Nd4 {[%clk 0:00:32.6]} 45... c5
{[%clk 0:00:56.5]} 46. Ne6+ {[%clk 0:00:33.1]} 46... Kc6 {[%clk 0:00:57]} 47.
Nxd8+ {[%clk 0:00:35]} 47... Rxd8 {[%clk 0:00:57.6]} 48. Re7 {[%clk 0:00:35.9]}
48... Rd6 {[%clk 0:00:57.2]} 49. Qc8+ {[%clk 0:00:36.9]} 49... Kb5 {[%clk
0:00:57.9]} 50. a4+ {[%clk 0:00:36.1]} 1-0

[Event "*** Titled Tuesday Blitz"]
[Site "Chess.com"]
[Date "2018.06.05"]
[Round "2"]
[White "HomayoonTofighi"]
[Black "gpeloui"]
[Result "1-0"]
[WhiteElo "2748"]
[BlackElo "2327"]
[TimeControl "180+2"]
[EndTime "13:24:47 PDT"]
[Termination "HomayoonTofighi won by resignation"]

1. e4 {[%clk 0:03:01.9]} 1... c5 {[%clk 0:02:57.8]} 2. Nf3 {[%clk 0:03:01.8]}
2... Nc6 {[%clk 0:02:58.6]} 3. Bb5 {[%clk 0:03:02.1]} 3... g6 {[%clk 0:02:59.4]}
4. Bxc6 {[%clk 0:03:01.1]} 4... bxc6 {[%clk 0:03:01.3]} 5. O-O {[%clk
0:03:00.5]} 5... Bg7 {[%clk 0:02:58.2]} 6. Re1 {[%clk 0:02:58.3]} 6... Nh6
{[%clk 0:02:57.4]} 7. d3 {[%clk 0:02:58]} 7... O-O {[%clk 0:02:58.8]} 8. Nc3
{[%clk 0:02:58.4]} 8... d6 {[%clk 0:02:57.5]} 9. h3 {[%clk 0:02:59.4]} 9... f5
{[%clk 0:02:57.2]} 10. e5 {[%clk 0:02:59.5]} 10... Qc7 {[%clk 0:02:55.8]} 11.
exd6 {[%clk 0:02:59.6]} 11... exd6 {[%clk 0:02:56.1]} 12. Bg5 {[%clk 0:03:01]}
12... Nf7 {[%clk 0:02:53.3]} 13. Re7 {[%clk 0:02:59.2]} 13... Bd7 {[%clk
0:02:54.7]} 14. Qd2 {[%clk 0:02:53.8]} 14... Rae8 {[%clk 0:02:45.4]} 15. Rae1
{[%clk 0:02:54.3]} 15... Rxe7 {[%clk 0:02:37.8]} 16. Rxe7 {[%clk 0:02:51.4]}
16... Nxg5 {[%clk 0:02:36]} 17. Nxg5 {[%clk 0:02:50.2]} 17... Qd8 {[%clk
0:02:37.4]} 18. Re1 {[%clk 0:02:38.7]} 18... Re8 {[%clk 0:02:35.3]} 19. Rxe8+
{[%clk 0:02:34.2]} 19... Qxe8 {[%clk 0:02:37.2]} 20. Nf3 {[%clk 0:02:35.1]}
20... Be6 {[%clk 0:02:28.1]} 21. b3 {[%clk 0:02:35.5]} 21... h6 {[%clk
0:02:15.2]} 22. Kf1 {[%clk 0:02:36.2]} 22... g5 {[%clk 0:02:14.4]} 23. Ne2
{[%clk 0:02:36.7]} 23... Bd5 {[%clk 0:02:13.8]} 24. Qa5 {[%clk 0:02:34.1]} 24...
Qd7 {[%clk 0:02:04.3]} 25. Nd2 {[%clk 0:02:30]} 25... f4 {[%clk 0:02:00.4]} 26.
f3 {[%clk 0:02:28.7]} 26... h5 {[%clk 0:01:49.2]} 27. Qa4 {[%clk 0:02:29.5]}
27... Be5 {[%clk 0:01:43.1]} 28. h4 {[%clk 0:02:22]} 28... gxh4 {[%clk
0:01:10.8]} 29. Nxf4 {[%clk 0:02:21.6]} 29... Bf7 {[%clk 0:01:12.3]} 30. Qe4
{[%clk 0:02:18.4]} 30... Qe7 {[%clk 0:00:55]} 31. Ng6 {[%clk 0:02:17.4]} 31...
Qg5 {[%clk 0:00:42]} 32. Nxe5 {[%clk 0:02:09.3]} 32... dxe5 {[%clk 0:00:41]} 33.
Qe2 {[%clk 0:02:06.8]} 33... h3 {[%clk 0:00:34.4]} 34. gxh3 {[%clk 0:02:03.3]}
34... Be6 {[%clk 0:00:35.9]} 35. Qg2 {[%clk 0:02:03.9]} 35... Bxh3 {[%clk
0:00:37.5]} 36. Qxh3 {[%clk 0:02:02.6]} 36... Qxd2 {[%clk 0:00:39]} 37. Qe6+
{[%clk 0:02:02.9]} 37... Kh7 {[%clk 0:00:37]} 38. Qf5+ {[%clk 0:02:00.9]} 38...
Kh6 {[%clk 0:00:36.8]} 39. Qf6+ {[%clk 0:02:01.5]} 39... Kh7 {[%clk 0:00:37.3]}
40. Qe7+ {[%clk 0:02:02.9]} 40... Kh6 {[%clk 0:00:38.2]} 41. Qxc5 {[%clk
0:02:03.3]} 41... Qd1+ {[%clk 0:00:37.6]} 42. Kg2 {[%clk 0:02:03.3]} 42... Qd2+
{[%clk 0:00:37.7]} 43. Qf2 {[%clk 0:02:03.2]} 43... Qxf2+ {[%clk 0:00:38.4]} 44.
Kxf2 {[%clk 0:02:03.2]} 44... Kg5 {[%clk 0:00:39.9]} 45. c3 {[%clk 0:01:59.4]}
45... Kf4 {[%clk 0:00:40.2]} 46. b4 {[%clk 0:01:55.7]} 46... h4 {[%clk
0:00:40.7]} 47. c4 {[%clk 0:01:55.9]} 47... h3 {[%clk 0:00:41.3]} 48. c5 {[%clk
0:01:41.5]} 48... a6 {[%clk 0:00:21.5]} 49. a4 {[%clk 0:01:41.3]} 49... Kf5
{[%clk 0:00:18.9]} 50. Kg3 {[%clk 0:01:40]} 50... Ke6 {[%clk 0:00:20.4]} 51.
Kxh3 {[%clk 0:01:38.9]} 51... Kd5 {[%clk 0:00:21.8]} 52. Kg4 {[%clk 0:01:39.5]}
52... a5 {[%clk 0:00:21.5]} 53. bxa5 {[%clk 0:01:39.3]} 53... Kxc5 {[%clk
0:00:23.1]} 54. Kf5 {[%clk 0:01:40.7]} 54... Kd6 {[%clk 0:00:24.6]} 55. a6
{[%clk 0:01:36]} 1-0